Workbook

Sheet menu

Sheet input
B8: Voce di costo | C8: Importo | D8: Criteri di allocazione
B9: Costi diretti
B10: Materie prime dirette | C10: 1000000 | D10: Diretti sui prodotti
B11: Lavoro diretto | C11: 500000 | D11: Diretti sui prodotti
B12: Costi indiretti
B13: Salari e stipendi al personale indiretto | C13: 650000 | D13: Ore dedicate
B14: Riscaldamento ed illuminazione | C14: 131100 | D14: Metri quadrati occupati
B15: Affitto locali | C15: 45600 | D15: Metri quadrati occupati
B16: Ammortamento attrezzature | C16: 384000 | D16: Ore macchina
B17: Vigilanza e pulizia | C17: 27000 | D17: n. stanze
B18: Energia impianti | C18: 160000 | D18: Diretti sui prodotti (ore macchina)
C19: =SUM(C13:C18) -> 1397700
B22: Voci di costo/attività | C22: Controllo qualità | D22: Movimentazione materiali | E22: Set up | F22: Approvvigionamento | G22: Specifiche di produzione | H22: Totale
B23: Salari e stipendi al personale indiretto | C23: 600 | D23: 900 | E23: 1500 | F23: 2500 | G23: 1000 | H23: 6500
B24: Riscaldamento e illuminazione | C24: 50 | D24: 250 | E24: 100 | F24: 90 | G24: 80 | H24: 570
B25: Affitto locali | C25: 50 | D25: 250 | E25: 100 | F25: 90 | G25: 80 | H25: 570
B26: Ammortamento attrezzature | C26: 240 | D26: 680 | E26: 80 | F26: 350 | G26: 250 | H26: 1600
B27: Vigilanza e pulizia | C27: 1 | D27: 3 | E27: 1 | F27: 2 | G27: 2 | H27: 9
B36: Attività | C36: Cost driver
B37: Controllo qualità | C37: n. ispezioni
B38: Movimentazione materiali | C38: n. movimentazione di materiali
B39: Set up | C39: n. set up
B40: Approvvigionamento | C40: n. ordini di acquisto
B41: Specifiche di produzione | C41: n. specifiche di produzione
B44: Cost drivers/prodotti | C44: Dido | D44: Dado | E44: Totale
B45: n. ispezioni | C45: 400 | D45: 350 | E45: 750
B46: n. movimentazione di materiali | C46: 800 | D46: 700 | E46: 1500
B47: n. set up | C47: 15 | D47: 90 | E47: 105
B48: n. ordini di acquisto | C48: 120 | D48: 230 | E48: 350
B49: n. specifiche di produzione | C49: 50 | D49: 75 | E49: 125
C58: Dido | D58: Dado | E58: totale
B59: Materie prime dirette | C59: 343000 | D59: 657000 | E59: =SUM(C59:D59) -> 1000000
B60: Lavoro diretto | C60: 365500 | D60: 134500 | E60: 500000
B61: Volume di produzione | C61: 120000 | D61: 72000 | E61: 192000
B62: ore macchina | C62: 950 | D62: 650 | E62: 1600
B65: unità | C65: materie prime
C66: lavoro diretto
C67: energia impianti
B68: lotto | C68: controllo qualità
C69: movimentazione materiali
C70: setup
C71: approvvigionamenti
B72: prodotto | C72: specifiche di produzione

Sheet allocazione costi alle attività
A9: Voci di costo/attività | B9: Controllo qualità | C9: Movimentazione materiali | D9: Set up | E9: Approvvigionamento | F9: Specifiche di produzione | G9: Totale | H9: controllo
A10: Salari e stipendi al personale indiretto | B10: =(input!$C$13/input!$H$23)*input!C23 -> 60000 | C10: =(input!$C$13/input!$H$23)*input!D23 -> 90000 | D10: =(input!$C$13/input!$H$23)*input!E23 -> 150000 | E10: =(input!$C$13/input!$H$23)*input!F23 -> 250000 | F10: =(input!$C$13/input!$H$23)*input!G23 -> 100000 | G10: =SUM(B10:F10) -> 650000 | H10: =IF(G10-input!C13=0, "ok", "allarme") -> ok
A11: Riscaldamento e illuminazione | B11: =(input!$C$14/input!$H$24)*input!C24 -> 11500 | C11: =(input!$C$14/input!$H$24)*input!D24 -> 57500 | D11: =(input!$C$14/input!$H$24)*input!E24 -> 23000 | E11: =(input!$C$14/input!$H$24)*input!F24 -> 20700 | F11: =(input!$C$14/input!$H$24)*input!G24 -> 18400 | G11: 131100 | H11: =IF(G11-input!C14=0, "ok", "allarme") -> ok
A12: Affitto locali | B12: =(input!$C$15/input!$H$25)*input!C25 -> 4000 | C12: =(input!$C$15/input!$H$25)*input!D25 -> 20000 | D12: =(input!$C$15/input!$H$25)*input!E25 -> 8000 | E12: =(input!$C$15/input!$H$25)*input!F25 -> 7200 | F12: =(input!$C$15/input!$H$25)*input!G25 -> 6400 | G12: 45600 | H12: =IF(G12-input!C15=0, "ok", "allarme") -> ok
A13: Ammortamento attrezzature | B13: =(input!$C$16/input!$H$26)*input!C26 -> 57600 | C13: =(input!$C$16/input!$H$26)*input!D26 -> 163200 | D13: =(input!$C$16/input!$H$26)*input!E26 -> 19200 | E13: =(input!$C$16/input!$H$26)*input!F26 -> 84000 | F13: =(input!$C$16/input!$H$26)*input!G26 -> 60000 | G13: 384000 | H13: =IF(G13-input!C16=0, "ok", "allarme") -> ok
A14: Vigilanza e pulizia | B14: =(input!$C$17/input!$H$27)*input!C27 -> 3000 | C14: =(input!$C$17/input!$H$27)*input!D27 -> 9000 | D14: =(input!$C$17/input!$H$27)*input!E27 -> 3000 | E14: =(input!$C$17/input!$H$27)*input!F27 -> 6000 | F14: =(input!$C$17/input!$H$27)*input!G27 -> 6000 | G14: 27000 | H14: =IF(G14-input!C17=0, "ok", "allarme") -> ok
B15: =SUM(B10:B14) -> 136100 | C15: 339700 | D15: 203200 | E15: 367900 | F15: 190800 | G15: 1237700 | H15: =IF(G15-SUM(input!C13:C17)=0, "ok", "allarme") -> ok

Sheet ribaltamento attività ai prod.
B8: Cost drivers/prodotti | C8: Dido | D8: Dado | E8: Totale | F8: Controllo
B9: Controllo qualità | C9: =('allocazione costi alle attività'!$B$15/input!$E$45)*input!C45 -> 72586.66667 | D9: =('allocazione costi alle attività'!$B$15/input!$E$45)*input!D45 -> 63513.33333 | E9: =SUM(C9:D9) -> 136100 | F9: =IF(E9-'allocazione costi alle attività'!B15=0,"ok","allarme") -> ok
B10: Movimentazione materiali | C10: =('allocazione costi alle attività'!$C$15/input!$E$46)*input!C46 -> 181173.3333 | D10: =('allocazione costi alle attività'!$C$15/input!$E$46)*input!D46 -> 158526.6667 | E10: =SUM(C10:D10) -> 339700 | F10: =IF(E10-'allocazione costi alle attività'!C15=0,"ok","allarme") -> ok
B11: Set up | C11: =('allocazione costi alle attività'!$D$15/input!$E$47)*input!C47 -> 29028.57143 | D11: =('allocazione costi alle attività'!$D$15/input!$E$47)*input!D47 -> 174171.4286 | E11: =SUM(C11:D11) -> 203200 | F11: =IF(E11-'allocazione costi alle attività'!D15=0,"ok","allarme") -> ok
B12: Approvvigionamento | C12: =('allocazione costi alle attività'!$E$15/input!$E$48)*input!C48 -> 126137.1429 | D12: =('allocazione costi alle attività'!$E$15/input!$E$48)*input!D48 -> 241762.8571 | E12: =SUM(C12:D12) -> 367900 | F12: =IF(E12-'allocazione costi alle attività'!E15=0,"ok","allarme") -> ok
B13: Specifiche di produzione | C13: =('allocazione costi alle attività'!$F$15/input!$E$49)*input!C49 -> 76320 | D13: =('allocazione costi alle attività'!$F$15/input!$E$49)*input!D49 -> 114480 | E13: 190800 | F13: =IF(E13-'allocazione costi alle attività'!F15=0,"ok","allarme") -> ok
C14: =SUM(C9:C13) -> 485245.7143 | D14: 752454.2857 | E14: =SUM(E9:E13) -> 1237700 | F14: =IF(E14-'allocazione costi alle attività'!G15=0,"ok","allarme") -> ok

Sheet costo prodotti
B9: Costi diretti/indiretti | C9: Dido | D9: Dado
B10: Materie prime dirette | C10: 343000 | D10: 657000
B11: Lavoro diretto | C11: 365500 | D11: 134500
B12: energia impianti | C12: =input!C18/input!E62*input!C62 -> 95000 | D12: =input!C18/input!E62*input!D62 -> 65000
B13: costi indiretti | C13: ='ribaltamento attività ai prod.'!C14 -> 485245.7143 | D13: ='ribaltamento attività ai prod.'!D14 -> 752454.2857
B14: totale | C14: =SUM(C10:C13) -> 1288745.714 | D14: 1608954.286
B15: Volume di produzione | C15: 120000 | D15: 72000
B16: Costo unitario | C16: =C14/C15 -> 10.73954762 | D16: 22.3465873

Sheet bill of activities
C8: Dido | F8: Dado
B9: Costi diretti/attività | C9: totali | D9: unitari | E9: % | F9: totali | G9: unitari | H9: %
B10: materie prime | C10: ='costo prodotti'!C10 -> 343000 | D10: =C10/'costo prodotti'!$C$15 -> 2.858333333 | E10: =C10/$C$18 -> 0.2661502546 | F10: ='costo prodotti'!D10 -> 657000 | G10: =F10/'costo prodotti'!$D$15 -> 9.125 | H10: =F10/$F$18 -> 0.4083397557
B11: lavoro diretto | C11: ='costo prodotti'!C11 -> 365500 | D11: =C11/'costo prodotti'!$C$15 -> 3.045833333 | E11: 0.2836090906 | F11: ='costo prodotti'!D11 -> 134500 | G11: =F11/'costo prodotti'!$D$15 -> 1.868055556 | H11: 0.08359466841
B12: energia impianti | C12: ='costo prodotti'!C12 -> 95000 | D12: =C12/'costo prodotti'!$C$15 -> 0.7916666667 | E12: 0.0737150851 | F12: ='costo prodotti'!D12 -> 65000 | G12: =F12/'costo prodotti'!$D$15 -> 0.9027777778 | H12: 0.04039891038
B13: controllo qualità | C13: ='ribaltamento attività ai prod.'!C9 -> 72586.66667 | D13: =C13/'costo prodotti'!$C$15 -> 0.6048888889 | E13: 0.056323498 | F13: ='ribaltamento attività ai prod.'!D9 -> 63513.33333 | G13: =F13/'costo prodotti'!$D$15 -> 0.8821296296 | H13: 0.03947491479
B14: movimentazione materiali | C14: ='ribaltamento attività ai prod.'!C10 -> 181173.3333 | D14: =C14/'costo prodotti'!$C$15 -> 1.509777778 | E14: 0.1405811335 | F14: ='ribaltamento attività ai prod.'!D10 -> 158526.6667 | G14: =F14/'costo prodotti'!$D$15 -> 2.201759259 | H14: 0.09852776308
B15: set up | C15: ='ribaltamento attività ai prod.'!C11 -> 29028.57143 | D15: =C15/'costo prodotti'!$C$15 -> 0.2419047619 | E15: 0.02252466961 | F15: ='ribaltamento attività ai prod.'!D11 -> 174171.4286 | G15: =F15/'costo prodotti'!$D$15 -> 2.419047619 | H15: 0.1082513221
B16: approvvigionamenti | C16: ='ribaltamento attività ai prod.'!C12 -> 126137.1429 | D16: =C16/'costo prodotti'!$C$15 -> 1.051142857 | E16: 0.09787589705 | F16: ='ribaltamento attività ai prod.'!D12 -> 241762.8571 | G16: =F16/'costo prodotti'!$D$15 -> 3.35781746 | H16: 0.1502608615
B17: specifiche di produzione | C17: ='ribaltamento attività ai prod.'!C13 -> 76320 | D17: =C17/'costo prodotti'!$C$15 -> 0.636 | E17: 0.05922037152 | F17: ='ribaltamento attività ai prod.'!D13 -> 114480 | G17: =F17/'costo prodotti'!$D$15 -> 1.59 | H17: 0.07115180401
B18: Totale | C18: =SUM(C10:C17) -> 1288745.714 | E18: =SUM(E10:E17) -> 1 | F18: 1608954.286 | H18: =SUM(H10:H17) -> 1

Sheet costo per gerarchia di attività
C8: costi totali | D8: dido | G8: dado
D9: totale | E9: unitario | F9: % | G9: totale | H9: unitario | I9: %
B10: Unità
B11: materie dirette | C11: =input!C10 -> 1000000 | D11: ='costo prodotti'!C10 -> 343000 | E11: =D11/'costo prodotti'!$C$15 -> 2.858333333 | F11: =D11/$D$23 -> 0.2661502546 | G11: ='costo prodotti'!D10 -> 657000 | H11: =G11/'costo prodotti'!$D$15 -> 9.125 | I11: =G11/$G$23 -> 0.4083397557
B12: lavoro diretto | C12: =input!C11 -> 500000 | D12: ='costo prodotti'!C11 -> 365500 | E12: =D12/'costo prodotti'!$C$15 -> 3.045833333 | F12: 0.2836090906 | G12: ='costo prodotti'!D11 -> 134500 | H12: =G12/'costo prodotti'!$D$15 -> 1.868055556 | I12: 0.08359466841
B13: energia impianti | C13: =input!C18 -> 160000 | D13: ='costo prodotti'!C12 -> 95000 | E13: =D13/'costo prodotti'!$C$15 -> 0.7916666667 | F13: 0.0737150851 | G13: ='costo prodotti'!D12 -> 65000 | H13: =G13/'costo prodotti'!$D$15 -> 0.9027777778 | I13: 0.04039891038
B14: totale | C14: =SUM(C11:C13) -> 1660000 | D14: 803500 | E14: 6.695833333 | F14: 0.6234744303 | G14: =SUM(G11:G13) -> 856500 | H14: =G14/'costo prodotti'!$D$15 -> 11.89583333 | I14: 0.5323333345
B15: Lotto | F15: 0
B16: controllo qualità | C16: ='ribaltamento attività ai prod.'!E9 -> 136100 | D16: ='ribaltamento attività ai prod.'!C9 -> 72586.66667 | E16: =D16/'costo prodotti'!$C$15 -> 0.6048888889 | F16: 0.056323498 | G16: ='ribaltamento attività ai prod.'!D9 -> 63513.33333 | H16: =G16/'costo prodotti'!$D$15 -> 0.8821296296 | I16: =G16/$G$23 -> 0.03947491479
B17: movimentazione materiali | C17: ='ribaltamento attività ai prod.'!E10 -> 339700 | D17: ='ribaltamento attività ai prod.'!C10 -> 181173.3333 | E17: =D17/'costo prodotti'!$C$15 -> 1.509777778 | F17: 0.1405811335 | G17: ='ribaltamento attività ai prod.'!D10 -> 158526.6667 | H17: =G17/'costo prodotti'!$D$15 -> 2.201759259 | I17: 0.09852776308
B18: set up | C18: ='ribaltamento attività ai prod.'!E11 -> 203200 | D18: ='ribaltamento attività ai prod.'!C11 -> 29028.57143 | E18: =D18/'costo prodotti'!$C$15 -> 0.2419047619 | F18: 0.02252466961 | G18: ='ribaltamento attività ai prod.'!D11 -> 174171.4286 | H18: =G18/'costo prodotti'!$D$15 -> 2.419047619 | I18: 0.1082513221
B19: approvvigionamenti | C19: ='ribaltamento attività ai prod.'!E12 -> 367900 | D19: ='ribaltamento attività ai prod.'!C12 -> 126137.1429 | E19: =D19/'costo prodotti'!$C$15 -> 1.051142857 | F19: 0.09787589705 | G19: ='ribaltamento attività ai prod.'!D12 -> 241762.8571 | H19: =G19/'costo prodotti'!$D$15 -> 3.35781746 | I19: 0.1502608615
B20: totale | C20: =SUM(C16:C19) -> 1046900 | D20: 408925.7143 | E20: 3.407714286 | F20: 0.3173051982 | G20: =SUM(G16:G19) -> 637974.2857 | H20: =G20/'costo prodotti'!$D$15 -> 8.860753968 | I20: 0.3965148615
B21: Prodotto | F21: 0
B22: specifiche di prodotto | C22: ='ribaltamento attività ai prod.'!E13 -> 190800 | D22: ='ribaltamento attività ai prod.'!C13 -> 76320 | E22: =D22/'costo prodotti'!$C$15 -> 0.636 | F22: 0.05922037152 | G22: ='ribaltamento attività ai prod.'!D13 -> 114480 | H22: =G22/'costo prodotti'!$D$15 -> 1.59 | I22: =G22/$G$23 -> 0.07115180401
B23: totale | C23: =C14+C20+C22 -> 2897700 | D23: 1288745.714 | E23: 10.73954762 | F23: 1 | G23: =G14+G20+G22 -> 1608954.286 | H23: =G23/'costo prodotti'!$D$15 -> 22.3465873 | I23: 1
